[Event "NC World Masters 2022"]
[Site "Dortmund"]
[Date "2022.07.18"]
[Round "1.1"]
[White "Kollars, Dmitrij"]
[Black "Anand, Viswanathan"]
[Result "1/2-1/2"]
[ECO "B44"]
[WhiteElo "2648"]
[BlackElo "2756"]
[Annotator "TA"]
[PlyCount "83"]
[EventDate "2022.07.18"]
[EventType "tourn"]
[EventCountry "GER"]
[SourceTitle "playchess.com"]
[Source "ChessBase"]
[SourceQuality "1"]
[TimeControl "40/5400+30:1800+30"]

{[%evp 14,83,-26,-33,-29,-34,0,0,0,0,0,0,0,0,0,0,0,0,0,-19,30,26,26,20,24,24,24,24,20,14,23,26,45,43,42,45,45,8,34,10,34,0,0,0,4,4,16,10,20,19,23,25,27,8,9,9,9,0,0,0,0,0,5,0,6,6,9,0,6,0,9,0]} 1. c4 {[%emt 0:00:03]} c5 {[%emt 0:00:12]} 2. Nf3 {[%emt 0:00:18][%cal Bg1f3,Bf3d4,Bd4c6][%mdl 32]} e6 {[%emt 0:00:13]} 3. Nc3 {[%emt 0:00:22]} Nf6 {[%emt 0:00:21]} 4. e4 {[%emt 0:00:28]} Nc6 {[%emt 0:00:11]} 5. d4 {[%emt 0:00:20]} cxd4 {[%emt 0:00:24]} 6. Nxd4 {[%emt 0:00:10]} Bb4 {[%emt 0:00:05]} 7. f3 {[%emt 0:00:34]} d5 {[%emt 0:05:39]} 8. cxd5 {[%emt 0:00:45]} exd5 {[%emt 0:00:12] B44: Sicilian: Taimanov: 5 Nb5.} 9. Bb5 {[%emt 0:00:12]} dxe4 {[%emt 0:01:02] ...Qb6 is the strong threat.} 10. Nxc6 {[%emt 0:04:43][%csl Gc6][%cal Rd1d8] [#]} Bxc3+ {[%emt 0:00:13]} 11. bxc3 {[%emt 0:06:47][%csl Gc6][%cal Rd1d8]} Qxd1+ {[%emt 0:00:15]} 12. Kxd1 {[%emt 0:00:03]} a6 {[%emt 0:00:13] [#]} 13. Ba4 $146 {[%emt 0:00:56] And now Nd4+ would win.} ({Predecessor:} 13. Nd4+ axb5 14. Nxb5 O-O 15. Bg5 Ra6 16. Kd2 exf3 17. gxf3 h6 18. Be3 Nd5 19. Bd4 {0-1 (44) Farago,S (2249)-Erdelyi,Z (2362) Budapest 2009}) 13... Bd7 {[%emt 0:00:11][%mdl 64] [#] Pin} 14. Re1 {[%emt 0:05:55][%cal Oc1g5]} Bxc6 {[%emt 0:01:07]} 15. Bxc6+ {[%emt 0:02:49]} bxc6 {[%emt 0:00:11]} 16. Bg5 {[%emt 0:00:19]} Kd7 {[%emt 0:04:46]} (16... O-O-O+ {feels stronger.} 17. Kc2 exf3) 17. Bxf6 {[%emt 0:11:19]} gxf6 {[%emt 0:00:11]} 18. Rxe4 {[%emt 0:00:08]} Rhe8 {[%emt 0:00:20]} 19. Rxe8 {[%emt 0:09:39]} Rxe8 $11 {[%emt 0:00:09][%mdl 4096] Endgame KR-KR} 20. Rb1 {[%emt 0:00:06]} Re5 {[%emt 0:01:57]} 21. Rb4 {[%emt 0:02:36]} Rh5 {[%emt 0:01:07]} 22. h3 {[%emt 0:01:26]} Rg5 {[%emt 0:01:07]} 23. g4 {[%emt 0:00:54]} f5 {[%emt 0:08:19]} 24. h4 {[%emt 0:06:54]} Rg6 {[%emt 0:01:43]} 25. g5 {[%emt 0:04:01]} f6 {[%emt 0:01:11]} 26. gxf6 {[%emt 0:02:40]} Rxf6 {[%emt 0:00:09]} (26... Kc7 {with more complications.} 27. Ra4 Kb6 28. f7 Rf6) 27. Ke2 {[%emt 0:02:26]} Kd6 {[%emt 0:02:30]} 28. Ke3 {[%emt 0:02:17]} Ke5 {[%emt 0:01:28]} 29. Ra4 {[%emt 0:02:51]} f4+ {[%emt 0:03:55]} 30. Kd3 {[%emt 0:00:43] aiming for Ra5+.} Rh6 {[%emt 0:01:02]} 31. Rxa6 {[%emt 0:01:35]} Rxh4 {[%emt 0:00:22]} 32. Ra5+ {[%emt 0:00:07]} Kd6 {[%emt 0:00:07]} 33. Ke4 {[%emt 0:00:37]} Rh2 {[%emt 0:00:11] The position is equal.} 34. Kxf4 {[%emt 0:03:55]} Rc2 {[%emt 0:01:24]} 35. Ra7 {[%emt 0:02:16]} Rxc3 {[%emt 0:00:15]} 36. Rxh7 {[%emt 0:00:12]} Ra3 {[%emt 0:00:06]} 37. Rh2 {[%emt 0:00:34]} c5 {[%emt 0:00:44]} 38. Ke4 {[%emt 0:00:50]} Ke6 {[%emt 0:00:58]} 39. Rh6+ {[%emt 0:00:55]} Kf7 {[%emt 0:00:07]} 40. Rh2 {[%emt 0:00:33]} Ke6 {[%emt 0:00:06]} 41. Rh6+ {[%emt 0:30:11]} Kf7 {[%emt 0:30:06]} 42. Rh2 {[%emt 0:00:08] Weighted Error Value: White=0.06 (flawless) /Black=0.05 (flawless)} 1/2-1/2

[Event "NC World Masters 2022"]
[Site "Dortmund"]
[Date "2022.07.18"]
[Round "1.2"]
[White "Adams, Michael"]
[Black "Fridman, Daniel"]
[Result "1-0"]
[ECO "C65"]
[WhiteElo "2696"]
[BlackElo "2599"]
[Annotator "TA"]
[PlyCount "83"]
[EventDate "2022.07.18"]
[EventType "tourn"]
[EventCountry "GER"]
[SourceTitle "playchess.com"]
[Source "ChessBase"]
[SourceQuality "1"]
[TimeControl "40/5400+30:1800+30"]

{[%evp 9,83,0,4,7,7,9,7,7,4,0,4,9,29,26,35,25,85,8,32,33,38,22,17,0,-10,-11,20,0,8,10,0,0,0,0,0,0,0,-14,-26,-8,142,111,130,111,107,101,400,399,581,329,330,322,614,278,621,619,592,0,271,0,624,644,635,619,575,616,607,612,608,612,654,650,770,762,1064,961]} 1. e4 {[%emt 0:00:02]} e5 {[%emt 0:00:06]} 2. Nf3 {[%emt 0:00:15]} Nc6 {[%emt 0:00:07]} 3. Bb5 {[%emt 0:01:16]} Nf6 {[%emt 0:00:08]} 4. d3 {[%emt 0:00:30]} Bc5 {[%emt 0:00:14]} 5. Be3 {[%emt 0:03:07]} Qe7 {[%emt 0:01:52]} 6. Bxc6 {[%emt 0:08:00] C65: Ruy Lopez: Berlin Defence (3...Nf6), unusual lines and 4 0-0 Bc5.} bxc6 {[%emt 0:01:14]} 7. Bxc5 {[%emt 0:02:48]} Qxc5 {[%emt 0:00:07] [#]} 8. Qd2 $146 {[%emt 0:00:07] The position is equal.} ({Predecessor:} 8. Nc3 O-O 9. O-O Rb8 10. Qd2 Qe7 11. b3 c5 12. h3 d6 13. Nh2 Nh5 14. Nd5 {0-1 (39) Ivanchuk,V (2765)-Carlsen,M (2823) Sao Paulo/Bilbao 2011}) 8... d6 {[%emt 0:03:21]} 9. h3 {[%emt 0:03:16]} Rb8 {[%emt 0:04:23]} 10. b3 {[%emt 0:01:02]} Be6 {[%emt 0:02:43]} 11. Nc3 {[%emt 0:02:27]} h6 {[%emt 0:01:56]} 12. Rd1 {[%emt 0:02:16]} Kf8 {[%emt 0:02:14]} (12... Qb4 $11) 13. Ke2 {[%emt 0:04:05]} (13. O-O $16) 13... Qa5 {[%emt 0:08:12]} 14. d4 {[%emt 0:09:36]} exd4 {[%emt 0:03:58]} 15. Qxd4 {[%emt 0:05:57]} c5 {[%emt 0:05:01]} 16. Qe3 {[%emt 0:09:35]} Re8 {[%emt 0:02:42][%cal Od6d5]} 17. Kf1 {[%emt 0:05:41]} Bc8 {[%emt 0:05:57]} 18. Kg1 {[%emt 0:03:19]} Bb7 {[%emt 0:03:22][%cal Rf6e4]} 19. Nd2 {[%emt 0:00:43]} d5 {[%emt 0:01:07] [#] And now ...d4 would win.} 20. Na4 {[%emt 0:01:43]} d4 {[%emt 0:07:08]} 21. Qf4 {[%emt 0:00:57] aiming for Nc4.} Ba6 {[%emt 0:03:54]} (21... Nxe4 22. Nc4 Qb5 23. f3 $14) 22. Qf5 {[%emt 0:12:10]} Be2 {[%emt 0:00:08]} 23. Kh2 {[%emt 0:01:37][%cal Oa4c5]} Bxd1 {[%emt 0:00:59]} 24. Rxd1 {[%emt 0:00:04] Threatens to win with e5.} Kg8 {[%emt 0:00:47]} ({Black should try} 24... Qa6 $1 $11) 25. e5 {[%emt 0:05:57]} Nh7 {[%emt 0:04:01] [#]} (25... Nd5 $2 26. Qd7 Kh7 27. Nc4 $18) 26. Qd7 $1 $36 {[%emt 0:00:48][%mdl 2048] Keeping Black busy.} Re6 {[%emt 0:01:03]} (26... Rxe5 $2 27. Qc8+ Nf8 28. Nc4 $18) 27. Nc4 {[%emt 0:01:26] White is more active.} Qb4 {[%emt 0:01:54][%mdl 8192]} (27... Nf8 $16 {was called for.}) 28. Qxc7 $18 {[%emt 0:00:25]} Ng5 {[%emt 0:01:10]} (28... Nf8 $142 29. Nxc5 Rg6 30. Qxa7 Qc3) 29. Nxc5 {[%emt 0:02:22] f4 is the strong threat. Pair of Knights!} Rg6 {[%emt 0:00:34]} 30. h4 {[%emt 0:05:37] Chess con chili.} (30. Qxa7 Qc3) (30. Rxd4 Nf3+ 31. gxf3 Qe1 $11) 30... Qc3 $2 {[%emt 0:11:13]} (30... Ne6 31. Nxe6 Rxe6 32. Qxa7 d3 33. Rxd3 Qe7 34. Qa8+ Kh7 35. Qe4+ g6) 31. Qc8+ {[%emt 0:00:34]} Kh7 {[%emt 0:00:07]} 32. Qf5 {[%emt 0:00:05]} Kg8 {[%emt 0:00:49]} 33. Qc8+ {[%emt 0:01:48]} (33. hxg5 hxg5+ 34. Kg1 Rgh6 35. Qc8+ Kh7 $16) (33. h5 $142 Rc6 34. Ne4) 33... Kh7 {[%emt 0:00:02]} 34. Qf5 {[%emt 0:00:04]} (34. Qg4) 34... Kg8 $1 {[%emt 0:00:08]} 35. Na4 {[%emt 0:00:11] White is clearly winning.} (35. hxg5 hxg5+ 36. Kg1 Rgh6 37. Qc8+ Kh7 $11) 35... Qb4 {[%emt 0:00:07]} 36. hxg5 {[%emt 0:01:58]} hxg5+ {[%emt 0:00:07]} 37. Kg3 {[%emt 0:00:04]} Rh4 {[%emt 0:00:18]} 38. Qc8+ {[%emt 0:01:52]} ({Worse is} 38. Nd6 Rxd6 39. Qc8+ (39. exd6 $2 Qxd6+ 40. Kf3 Rf4+ 41. Qxf4 Qxf4+ 42. Ke2 Qe4+ 43. Kf1 Qxc2 $19) (39. Qxg5 $2 Rg6 $19) 39... Kh7 40. Qf5+ (40. exd6 $2 Qxd6+ 41. Kf3 Qe5 $19) 40... Kg8 41. Qc8+ (41. exd6 $2 Qxd6+ 42. Kf3 Rf4+ 43. Qxf4 Qxf4+ 44. Ke2 Qe4+ 45. Kf1 Qxc2 $19) (41. Qxg5 $2 Rg6 $19) 41... Kh7 $17) 38... Kh7 {[%emt 0:00:09]} 39. Qd7 {[%emt 0:00:58][%csl LRa7,LRd4,LRf7] Against Qb5} Rf4 {[%emt 0:01:50]} 40. a3 {[%emt 0:01:05]} Qb8 {[%emt 0:00:32]} 41. Nc5 {[%emt 0:05:31]} f5 {[%emt 0:00:44]} 42. f3 {[%emt 0:02:41] Weighted Error Value: White=0.35/Black=0.40} 1-0

[Event "NC World Masters 2022"]
[Site "Dortmund"]
[Date "2022.07.19"]
[Round "2.1"]
[White "Adams, Michael"]
[Black "Anand, Viswanathan"]
[Result "1/2-1/2"]
[ECO "A33"]
[WhiteElo "2696"]
[BlackElo "2756"]
[Annotator "TA"]
[PlyCount "49"]
[EventDate "2022.07.18"]
[EventType "tourn"]
[EventCountry "GER"]
[SourceTitle "playchess.com"]
[Source "ChessBase"]
[SourceQuality "1"]
[TimeControl "40/5400+30:1800+30"]

{[%evp 11,49,0,4,23,35,31,33,25,26,25,30,29,35,39,41,41,35,35,30,6,6,6,6,6,6,6,6,6,6,6,6,6,6,6,6,6,6,0,6,0]} 1. c4 {[%emt 0:00:02]} c5 {[%emt 0:00:35]} 2. Nf3 {[%emt 0:00:06]} e6 {[%emt 0:00:14]} 3. Nc3 {[%emt 0:00:55]} Nf6 {[%emt 0:00:23]} 4. a3 {[%emt 0:02:01]} Nc6 {[%emt 0:01:34]} 5. d4 {[%emt 0:00:11]} cxd4 {[%emt 0:04:33]} 6. Nxd4 {[%emt 0:00:05]} d5 {[%emt 0:00:20]} 7. cxd5 {[%emt 0:02:00] A33: Symmetrical English: 2 Nf3 Nf6 3 d4 cxd4 4 Nxd4 e6 5 Nc3 Nc6.} Nxd4 {[%emt 0:00:29]} (7... exd5 {is more complex.} 8. Bg5 Bc5 9. e3 O-O) 8. Qxd4 {[%emt 0:00:25] And now e4 would win.} (8. Qa4+ {is interesting.} b5 9. Qxd4 Nxd5 10. e4) 8... Nxd5 {[%emt 0:00:11]} 9. Nxd5 {[%emt 0:04:31] White is slightly better.} Qxd5 {[%emt 0:00:17]} 10. Qxd5 {[%emt 0:00:07]} exd5 {[%emt 0:00:07]} 11. Be3 {[%emt 0:04:06]} Bd6 {[%emt 0:03:22]} 12. Bd4 {[%emt 0:02:19] Inhibits Be5.} f6 {[%emt 0:00:51] [#]} 13. g3 $146 {[%emt 0:00:29]} ({Predecessor:} 13. e3 Be5 14. Rd1 Bxd4 15. Rxd4 Be6 16. Rb4 b6 17. Ba6 Ke7 18. Kd2 Bc8 19. Bd3 {1-0 (53) Zagorskis,D (2493)-Sarakauskas,G (2449) Kaunas 2008}) 13... Be6 {[%emt 0:03:03]} 14. Bg2 {[%emt 0:03:19]} Ke7 {[%emt 0:02:10]} 15. Kd2 {[%emt 0:02:34]} b6 {[%emt 0:02:00] The position is equal.} (15... Be5 {with more complications.} 16. Bc5+ Kf7 17. f4 Rhc8) 16. Rhc1 {[%emt 0:11:21]} Rac8 {[%emt 0:00:31]} 17. Rxc8 {[%emt 0:09:52]} Rxc8 {[%emt 0:00:11]} 18. Rc1 {[%emt 0:00:06]} Rxc1 {[%emt 0:00:06]} 19. Kxc1 $11 {[%emt 0:00:03][%mdl 4096] Endgame KBB-KBB} Bc5 {[%emt 0:00:33]} 20. e3 {[%emt 0:00:05]} Bxd4 {[%emt 0:00:06]} 21. exd4 {[%emt 0:00:03]} g5 {[%emt 0:00:09]} 22. Kd2 {[%emt 0:00:04]} h6 {[%emt 0:00:06]} 23. Ke3 {[%emt 0:00:03]} Kd6 {[%emt 0:00:05]} 24. Kd2 {[%emt 0:00:04]} Ke7 {[%emt 0:00:06]} 25. Ke3 {[%emt 0:00:04] Weighted Error Value: White=0.02 (flawless) /Black=0.01 (flawless)} 1/2-1/2

[Event "NC World Masters 2022"]
[Site "Dortmund"]
[Date "2022.07.19"]
[Round "2.2"]
[White "Fridman, Daniel"]
[Black "Kollars, Dmitrij"]
[Result "1-0"]
[ECO "A47"]
[WhiteElo "2599"]
[BlackElo "2648"]
[Annotator "TA"]
[PlyCount "103"]
[EventDate "2022.07.18"]
[EventType "tourn"]
[EventCountry "GER"]
[SourceTitle "playchess.com"]
[Source "ChessBase"]
[SourceQuality "1"]
[TimeControl "40/5400+30:1800+30"]

{[%evp 9,103,11,4,0,0,0,0,0,0,0,18,27,45,38,38,40,37,10,47,20,35,-10,-19,-18,-25,-89,-89,-85,-85,-85,-60,-50,-50,-66,-70,-58,-55,-59,-65,-67,-15,-7,76,62,64,73,68,72,67,70,62,66,52,0,201,195,182,160,160,127,181,150,137,152,150,141,143,57,26,60,59,21,134,21,25,37,140,107,442,430,443,413,526,515,689,735,736,743,725,691,659,559,990,994,869,837]} 1. d4 {[%emt 0:01:34]} d5 {[%emt 0:00:27]} 2. Nf3 {[%emt 0:00:05]} Nf6 {[%emt 0:00:24]} 3. e3 {[%emt 0:00:05]} e6 {[%emt 0:01:43]} 4. b3 {[%emt 0:00:06]} b6 {[%emt 0:05:12]} 5. Bb2 {[%emt 0:00:07]} Bb7 {[%emt 0:00:22]} 6. Nbd2 {[%emt 0:00:06] A47: 1 d4 Nf6 2 Nf3 b6: Torre, London and Colle Systems.} Nbd7 {[%emt 0:02:21][%cal Bb8d7,Bd7f6,Bf6e4][%mdl 32]} 7. Bd3 {[%emt 0:00:09]} Ne4 {[%emt 0:08:32]} 8. c4 $5 {[%emt 0:00:25][%mdl 4] The position is equal. A promising side line.} Bd6 {[%emt 0:02:09]} 9. Qc2 {[%emt 0:03:42][%cal Rd2e4] [#]} Ndf6 $146 {[%emt 0:03:50]} ({Predecessor:} 9... f5 10. Ne5 Bxe5 11. dxe5 Ndc5 12. cxd5 Nxd2 13. Bb5+ Ke7 14. d6+ cxd6 15. exd6+ Qxd6 16. Qxd2 Qxd2+ 17. Kxd2 {1-0 (49) Pultinevicius,P (2492)-Keymer,V (2591) Chess.com INT 2021}) 10. cxd5 {[%emt 0:05:30]} exd5 {[%emt 0:02:23]} 11. Bb5+ {[%emt 0:01:28]} Kf8 {[%emt 0:02:14]} 12. Nxe4 {[%emt 0:04:55]} Nxe4 {[%emt 0:02:30]} 13. Bc6 {[%emt 0:06:50]} Qc8 {[%emt 0:16:44]} 14. a3 {[%emt 0:04:47]} (14. Ne5 {is more complex.} Bb4+ 15. Kf1 h5 16. f3) 14... f6 {[%emt 0:03:35]} 15. Nh4 {[%emt 0:06:06]} g6 $1 {[%emt 0:04:50]} 16. f3 {[%emt 0:00:23]} Ng5 {[%emt 0:00:30]} 17. Kf2 {[%emt 0:01:21]} (17. e4 $11 {keeps the balance.}) 17... Kg7 $17 {[%emt 0:01:20]} 18. Bxb7 {[%emt 0:04:36]} Qxb7 {[%emt 0:00:04]} 19. Rac1 {[%emt 0:00:28]} Rhe8 {[%emt 0:03:23]} 20. Qc6 {[%emt 0:03:44]} Qa6 {[%emt 0:01:00] Threatens to win with ...Qd3.} 21. Qxd5 {[%emt 0:06:36] [#]} Rxe3 $1 {[%emt 0:02:44] aiming for ...Qe2+.} 22. Rhe1 {[%emt 0:00:21] Inhibits Qe2+.} (22. Kxe3 $2 Re8+ 23. Qe4 (23. Kd2 $2 Qe2+ 24. Kc3 Re3#) 23... Nxe4 24. fxe4 Qb5 $19) 22... Rxe1 {[%emt 0:01:50]} 23. Rxe1 {[%emt 0:00:29]} Rd8 {[%emt 0:00:12][%cal Od6g3]} 24. Qc4 {[%emt 0:02:13]} Qc8 {[%emt 0:07:35]} (24... b5 $15 25. Qe2 Rd7) 25. d5 $11 {[%emt 0:02:11]} Bc5+ {[%emt 0:05:01]} (25... Re8 $11) 26. Kf1 $1 $16 {[%emt 0:03:05][%cal Bf2f1,Bf1e1,Be1d1,Bd1c1][%mdl 32] And now f4 would win.} Re8 {[%emt 0:01:42]} 27. Rxe8 $1 {[%emt 0:03:52]} Qxe8 {[%emt 0:00:03]} 28. Qf4 $36 {[%emt 0:00:46][%csl LRc7,LRf6,LRg5][%mdl 2048] White is in control.} Qb5+ {[%emt 0:08:28]} 29. Ke1 {[%emt 0:00:41]} Nf7 {[%emt 0:04:33] Strongly threatening ...Be7.} 30. Qxf6+ {[%emt 0:05:14]} Kf8 {[%emt 0:00:04]} 31. b4 {[%emt 0:01:09]} ({White should play} 31. Qg7+ $14 Ke8 32. Qxh7 Qxb3 33. Qg8+ Bf8 34. Bg7 (34. Nxg6 Qe3+ 35. Kf1 Qd3+ 36. Kf2 Qd2+ 37. Kg3 Qg5+ 38. Kh3 Qf5+ 39. Kh4 Qg5+ 40. Kh3 Qf5+ 41. Kh4 Qg5+ 42. Kh3 $11) 34... Qe3+ 35. Kf1 Qc1+ 36. Kf2 Qc5+ 37. Kg3 Qd6+ 38. Kh3 Qd7+ 39. Kg3 Qd6+ 40. f4) 31... Qe8+ $2 {[%emt 0:03:24]} (31... Bd6 $1 $11 {and Black has nothing to worry.}) 32. Kd1 $18 {[%emt 0:01:29]} Bf2 {[%emt 0:00:10]} 33. Qg7+ {[%emt 0:03:57]} Ke7 {[%emt 0:00:03]} 34. g3 {[%emt 0:00:46] White is more active.} Kd8 {[%emt 0:01:30]} (34... Kd7 $16) 35. Ng2 {[%emt 0:00:38]} Kc8 {[%emt 0:00:39]} 36. Qxh7 {[%emt 0:02:04]} Qa4+ {[%emt 0:01:07]} 37. Kc1 {[%emt 0:00:30]} Nd6 {[%emt 0:01:14]} 38. Qxg6 {[%emt 0:06:36]} (38. Qh8+ $1 $16 Kb7 39. Qc3) 38... Qb5 $14 {[%emt 0:00:39]} 39. Qe6+ {[%emt 0:00:13]} Kb8 {[%emt 0:00:35]} 40. Nf4 {[%emt 0:00:09] Black must now prevent Qe2.} (40. Kd2 $5 {[%cal Rb2e5]}) 40... Qf1+ {[%emt 0:02:07]} (40... Qc4+ $1 $11 41. Kb1 Qb3) 41. Kc2 {[%emt 0:30:07]} ({White must play} 41. Kd2 $1 $16) 41... Qc4+ $11 {[%emt 0:14:01]} 42. Kb1 {[%emt 0:00:00]} Qf1+ {[%emt 0:02:30] [#]} (42... Qb3 $1 $14 43. Qe2 Nc4) 43. Bc1 $1 $16 {[%emt 0:00:00] Hoping for Qe2.} Qh1 $2 {[%emt 0:00:27][%mdl 8192] Loses the game.} (43... Qc4 $16 44. Qe2 Qb3+ 45. Qb2 Qxf3) 44. Qe2 $18 {[%emt 0:00:00]} Qxh2 {[%emt 0:00:10] [#]} 45. g4 {[%emt 0:00:00][%cal Bg3g4,Bg4g5][%mdl 32]} ({Weaker is} 45. Qe7 Bxg3 46. Ne6 Nc8 $14) 45... Qh4 {[%emt 0:01:52]} 46. Ne6 {[%emt 0:00:00] Qc2 is the strong threat. White is clearly winning.} Bg3 {[%emt 0:00:39]} 47. Qc2 {[%emt 0:00:00]} Qe7 {[%emt 0:01:39]} 48. g5 {[%emt 0:00:00]} Nb5 {[%emt 0:01:37]} 49. Qd3 {[%emt 0:00:00]} Be5 {[%emt 0:01:34]} 50. Bd2 {[%emt 0:00:00] Against Nc3+} (50. Qxb5 {is a self mate.} Qh7+ 51. g6 Qxg6+) 50... Nxa3+ {[%emt 0:02:42]} 51. Qxa3 {[%emt 0:00:00]} Qh7+ {[%emt 0:00:11]} 52. Kc1 {[%emt 0:00:00] Weighted Error Value: White=0.15 (very precise) /Black=0.43} 1-0

[Event "NC World Masters 2022"]
[Site "Dortmund"]
[Date "2022.07.20"]
[Round "3.1"]
[White "Anand, Viswanathan"]
[Black "Fridman, Daniel"]
[Result "1-0"]
[ECO "C65"]
[WhiteElo "2756"]
[BlackElo "2599"]
[Annotator "TA"]
[PlyCount "63"]
[EventDate "2022.07.18"]
[EventType "tourn"]
[EventCountry "GER"]
[SourceTitle "playchess.com"]
[Source "ChessBase"]
[SourceQuality "1"]
[TimeControl "40/5400+30:1800+30"]

{[%evp 9,62,8,41,-63,-17,-37,-35,-33,-11,-85,-43,-81,71,64,70,25,96,110,108,93,107,91,194,49,260,268,248,235,336,325,434,448,435,432,446,437,445,438,533,513,580,540,1062,1010,29990,29991,29991,257,29992,29993,29994,29994,29998,29998,29999]} 1. e4 {[%emt 0:00:01]} e5 {[%emt 0:00:16]} 2. Nf3 {[%emt 0:00:07]} Nc6 {[%emt 0:00:06]} 3. Bb5 {[%emt 0:00:08]} Nf6 {[%emt 0:00:05]} 4. d3 {[%emt 0:00:07]} Bc5 {[%emt 0:00:06]} 5. c3 {[%emt 0:00:07]} Qe7 {[%emt 0:00:23][%cal Oc5f2] [#]} 6. Ke2 $146 {[%emt 0:00:13] C65: Ruy Lopez: Berlin Defence (3...Nf6), unusual lines and 4 0-0 Bc5.} (6. b4 $14 Bb6 7. Bc4) ({Predecessor:} 6. O-O O-O 7. h3 a6 8. Ba4 b5 9. Bc2 d6 10. Re1 h6 11. Nbd2 Bb6 12. Nf1 Rd8 13. Ng3 Qf8 {1-0 (33) Pruijssers,R (2523)-Rudd,J (2276) St Clement Bay 2018}) 6... a6 {[%emt 0:09:01]} (6... O-O $15 {was preferrable.}) 7. Bxc6 $11 {[%emt 0:00:38]} dxc6 {[%emt 0:01:51]} 8. Re1 {[%emt 0:00:30] Black is slightly better.} Bg4 {[%emt 0:00:21] With the idea ...Bxf3+.} 9. Nbd2 {[%emt 0:02:45]} (9. Kf1 $1 $11) 9... Rd8 {[%emt 0:01:06]} 10. Qc2 {[%emt 0:01:46]} Kd7 $2 {[%emt 0:07:59]} (10... Nh5 $17 {and life is bright. ...Qh4 is the strong threat.} 11. Kf1 Nf4) 11. h3 {[%emt 0:01:12]} Bh5 {[%emt 0:00:53]} 12. g4 {[%emt 0:04:02]} (12. b4 $5 {[%cal Rb4c5]} Bxf3+ 13. Nxf3 $14) 12... Nxg4 {[%emt 0:05:36]} 13. hxg4 $16 {[%emt 0:00:39]} Bxg4 {[%emt 0:00:06]} 14. Rg1 {[%emt 0:04:25]} h5 {[%emt 0:01:38]} 15. Nc4 {[%emt 0:04:29][%cal Oc4e5]} Kc8 {[%emt 0:01:31] [#]} (15... Qf6 $2 16. Ncxe5+ $1 {[%mdl 512]} (16. Rxg4 hxg4 17. Ncxe5+ Kc8 $16) 16... Kc8 17. Nxg4 hxg4 18. Rxg4 $18) (15... f6 $16) 16. Be3 {[%emt 0:04:36]} (16. Ncxe5 $1 $18 {[%mdl 512] Hoping for d4.} Rde8 (16... Qe6 17. b4) 17. d4) 16... g6 $2 {[%emt 0:01:07] [#] This move loses the game for Black.} (16... Bd6 $14) 17. Ncxe5 $1 $18 {[%emt 0:08:05][%mdl 512]} Bxe3 {[%emt 0:01:29]} 18. fxe3 {[%emt 0:03:05]} Qxe5 {[%emt 0:10:28] [#]} (18... f5 {is a better defense.}) 19. Rxg4 $1 {[%emt 0:00:47][%mdl 512]} hxg4 {[%emt 0:00:07]} (19... Qe6 20. Rg5) 20. Nxe5 {[%emt 0:00:06]} Rh2+ {[%emt 0:00:04]} 21. Kd1 {[%emt 0:00:20][%cal Be2d1,Bd1d2,Bd2d3][%mdl 32]} Rh1+ {[%emt 0:06:00] [#]} 22. Kd2 $1 {[%emt 0:00:55]} Rxa1 {[%emt 0:02:12]} 23. d4 {[%emt 0:13:23]} Rh8 {[%emt 0:12:51]} 24. Kd3 {[%emt 0:00:13]} g3 {[%emt 0:00:09]} 25. Qg2 {[%emt 0:00:56]} ({Stronger than} 25. Nxf7 Rh2 26. Qb3 b5 $11) 25... Rh2 {[%emt 0:03:39]} 26. Qxg3 {[%emt 0:00:18]} Rxb2 {[%emt 0:00:07]} 27. Qh3+ {[%emt 0:01:08]} Kb8 {[%emt 0:00:07]} 28. Qh8+ {[%emt 0:00:10]} Ka7 {[%emt 0:00:04]} 29. Nd7 {[%emt 0:00:08][%csl Gd7][%cal Rh8b8] White mates.} Rd1+ {[%emt 0:00:09]} 30. Kc4 {[%emt 0:00:05][%csl Gd7][%cal Rh8b8]} b5+ {[%emt 0:00:07]} 31. Kc5 {[%emt 0:00:05][%csl Gd7][%cal Rh8b8]} Kb7 {[%emt 0:00:04]} 32. Qb8# {[%emt 0:00:09] Weighted Error Value: White=0.22 (precise) /Black=0.84} 1-0